[Event "December 19 Late 2023"]
[Site "https://www.chess.com"]
[Date "2023.12.19"]
[Round "6"]
[White "Assylov, Miras"]
[Black "Gabuzyan, Hovhannes"]
[Result "1-0"]
[Board "43"]
[TimeControl "180+1"]
[WhiteFideId "13728873"]
[BlackFideId "13303732"]
[WhiteElo "1991"]
[BlackElo "2486"]
[WhiteTeam "KAZ"]
[BlackTeam "ARM"]
[WhiteClock "0:00:14"]
[BlackClock "0:01:14"]

1. b3 {[%clk 0:02:56]}  e5 {[%clk 0:02:54]} 2. Bb2 {[%clk 0:02:56]}  Nc6 {[%clk 0:02:51]} 3. e3 {[%clk 0:02:55]}  Nf6 {[%clk 0:02:49]} 4. Bb5 {[%clk 0:02:55]}  Bd6 {[%clk 0:02:48]} 5. Na3 {[%clk 0:02:54]}  a6 {[%clk 0:02:45]} 6. Be2 {[%clk 0:02:51]}  b5 {[%clk 0:02:40]} 7. c4 {[%clk 0:02:43]}  b4 {[%clk 0:02:40]} 8. Nc2 {[%clk 0:02:44]}  e4 {[%clk 0:02:39]} 9. d3 {[%clk 0:02:32]}  exd3 {[%clk 0:02:38]} 10. Bxd3 {[%clk 0:02:31]}  Qe7 {[%clk 0:02:38]} 11. Nf3 {[%clk 0:02:27]}  Bb7 {[%clk 0:02:37]} 12. Ncd4 {[%clk 0:02:17]}  Nxd4 {[%clk 0:02:26]} 13. Bxd4 {[%clk 0:02:18]}  Ne4 {[%clk 0:02:21]} 14. Rc1 {[%clk 0:02:06]}  c5 {[%clk 0:02:17]} 15. Bb2 {[%clk 0:01:56]}  f5 {[%clk 0:02:16]} 16. O-O {[%clk 0:01:43]}  O-O-O {[%clk 0:02:15]} 17. Be2 {[%clk 0:01:37]}  Bc7 {[%clk 0:02:12]} 18. Qc2 {[%clk 0:01:23]}  Rhg8 {[%clk 0:02:10]} 19. Rfd1 {[%clk 0:01:21]}  g5 {[%clk 0:02:10]} 20. Nd2 {[%clk 0:01:21]}  g4 {[%clk 0:02:04]} 21. Nxe4 {[%clk 0:01:08]}  Bxe4 {[%clk 0:02:05]} 22. Bd3 {[%clk 0:01:07]}  Bxh2+ {[%clk 0:01:52]} 23. Kxh2 {[%clk 0:00:52]}  Qh4+ {[%clk 0:01:53]} 24. Kg1 {[%clk 0:00:47]}  Bxg2 {[%clk 0:01:54]} 25. Kxg2 {[%clk 0:00:47]}  Qh3+ {[%clk 0:01:48]} 26. Kg1 {[%clk 0:00:45]}  g3 {[%clk 0:01:49]} 27. f3 {[%clk 0:00:27]}  g2 {[%clk 0:01:46]} 28. Bxf5 {[%clk 0:00:26]}  Qh1+ {[%clk 0:01:29]} 29. Kf2 {[%clk 0:00:26]}  Qh2 {[%clk 0:01:30]} 30. Rg1 {[%clk 0:00:23]}  Rdf8 {[%clk 0:01:28]} 31. Qe4 {[%clk 0:00:18]}  Qg3+ {[%clk 0:01:28]} 32. Ke2 {[%clk 0:00:18]}  Re8 {[%clk 0:01:23]} 33. Qa8+ {[%clk 0:00:17]}  Kc7 {[%clk 0:01:20]} 34. Qa7+ {[%clk 0:00:17]}  Kc6 {[%clk 0:01:16]} 35. Bxd7+ {[%clk 0:00:15]}  Kd6 {[%clk 0:01:14]} 36. Rcd1+ {[%clk 0:00:14]} 1-0

[Event "December 19 Late 2023"]
[Site "https://www.chess.com"]
[Date "2023.12.19"]
[Round "6"]
[White "FontVella8"]
[Black "Spata, German"]
[Result "1/2-1/2"]
[Board "44"]
[TimeControl "180+1"]
[BlackFideId "113026"]
[WhiteElo "2811"]
[BlackElo "2260"]
[BlackTeam "ARG"]
[WhiteClock "0:00:03"]
[BlackClock "0:00:05"]

1. e4 {[%clk 0:03:00]}  c5 {[%clk 0:02:57]} 2. Nf3 {[%clk 0:03:00]}  a6 {[%clk 0:02:57]} 3. c3 {[%clk 0:02:59]}  d5 {[%clk 0:02:55]} 4. exd5 {[%clk 0:02:59]}  Qxd5 {[%clk 0:02:56]} 5. d4 {[%clk 0:02:58]}  e6 {[%clk 0:02:56]} 6. Be2 {[%clk 0:02:58]}  cxd4 {[%clk 0:02:53]} 7. cxd4 {[%clk 0:02:58]}  Nf6 {[%clk 0:02:52]} 8. O-O {[%clk 0:02:56]}  Be7 {[%clk 0:02:52]} 9. Nc3 {[%clk 0:02:57]}  Qd8 {[%clk 0:02:51]} 10. Bg5 {[%clk 0:02:55]}  O-O {[%clk 0:02:50]} 11. Rc1 {[%clk 0:02:54]}  Nbd7 {[%clk 0:02:44]} 12. Bd3 {[%clk 0:02:53]}  b6 {[%clk 0:02:39]} 13. Bb1 {[%clk 0:02:41]}  Bb7 {[%clk 0:02:39]} 14. Re1 {[%clk 0:02:40]}  Rc8 {[%clk 0:02:34]} 15. Qd3 {[%clk 0:02:38]}  b5 {[%clk 0:02:32]} 16. a3 {[%clk 0:02:36]}  g6 {[%clk 0:02:27]} 17. h4 {[%clk 0:02:20]}  Nd5 {[%clk 0:02:21]} 18. Ne4 {[%clk 0:02:15]}  Rxc1 {[%clk 0:02:19]} 19. Rxc1 {[%clk 0:02:15]}  N5f6 {[%clk 0:02:14]} 20. Ng3 {[%clk 0:02:05]}  Bxf3 {[%clk 0:02:05]} 21. Qxf3 {[%clk 0:02:05]}  Nd5 {[%clk 0:02:05]} 22. Bxe7 {[%clk 0:01:37]}  Qxe7 {[%clk 0:02:05]} 23. h5 {[%clk 0:01:36]}  Rd8 {[%clk 0:01:58]} 24. hxg6 {[%clk 0:01:35]}  hxg6 {[%clk 0:01:58]} 25. Ne4 {[%clk 0:01:33]}  Kg7 {[%clk 0:01:50]} 26. Rc6 {[%clk 0:01:25]}  N7f6 {[%clk 0:01:37]} 27. Nc5 {[%clk 0:01:15]}  Rd6 {[%clk 0:01:27]} 28. Rxa6 {[%clk 0:01:07]}  Rxa6 {[%clk 0:01:23]} 29. Nxa6 {[%clk 0:01:08]}  b4 {[%clk 0:01:11]} 30. Nc5 {[%clk 0:01:02]}  bxa3 {[%clk 0:01:11]} 31. bxa3 {[%clk 0:01:03]}  Qd6 {[%clk 0:01:06]} 32. a4 {[%clk 0:01:01]}  Nb4 {[%clk 0:01:03]} 33. Qc3 {[%clk 0:00:42]}  Nfd5 {[%clk 0:00:55]} 34. Qe1 {[%clk 0:00:42]}  Nc6 {[%clk 0:00:50]} 35. Qe4 {[%clk 0:00:36]}  Qf4 {[%clk 0:00:42]} 36. Qxf4 {[%clk 0:00:21]}  Nxf4 {[%clk 0:00:43]} 37. Kf1 {[%clk 0:00:19]}  Nxd4 {[%clk 0:00:40]} 38. a5 {[%clk 0:00:19]}  Kf6 {[%clk 0:00:33]} 39. a6 {[%clk 0:00:19]}  Nb5 {[%clk 0:00:32]} 40. g3 {[%clk 0:00:14]}  Nd5 {[%clk 0:00:30]} 41. Bd3 {[%clk 0:00:14]}  Na7 {[%clk 0:00:30]} 42. Ke2 {[%clk 0:00:11]}  Ke7 {[%clk 0:00:29]} 43. Kf3 {[%clk 0:00:10]}  f5 {[%clk 0:00:28]} 44. Bc4 {[%clk 0:00:10]}  Kd6 {[%clk 0:00:28]} 45. Nb7+ {[%clk 0:00:09]}  Ke5 {[%clk 0:00:25]} 46. Nd8 {[%clk 0:00:05]}  Nc7 {[%clk 0:00:23]} 47. Ke3 {[%clk 0:00:04]}  g5 {[%clk 0:00:22]} 48. f4+ {[%clk 0:00:04]}  gxf4+ {[%clk 0:00:23]} 49. gxf4+ {[%clk 0:00:05]}  Kd6 {[%clk 0:00:24]} 50. Kd4 {[%clk 0:00:05]}  Nc6+ {[%clk 0:00:14]} 51. Nxc6 {[%clk 0:00:05]}  Kxc6 {[%clk 0:00:15]} 52. a7 {[%clk 0:00:04]}  Kb6 {[%clk 0:00:06]} 53. Ke5 {[%clk 0:00:03]}  Kxa7 {[%clk 0:00:04]} 54. Bxe6 {[%clk 0:00:02]}  Kb6 {[%clk 0:00:04]} 55. Bxf5 {[%clk 0:00:02]}  Kc5 {[%clk 0:00:05]} 56. Bd7 {[%clk 0:00:02]}  Nd5 {[%clk 0:00:03]} 57. f5 {[%clk 0:00:03]}  Ne7 {[%clk 0:00:02]} 58. f6 {[%clk 0:00:03]}  Ng6+ {[%clk 0:00:02]} 59. Kf5 {[%clk 0:00:02]}  Nf8 {[%clk 0:00:03]} 60. Be8 {[%clk 0:00:03]}  Kd6 {[%clk 0:00:03]} 61. Bf7 {[%clk 0:00:02]}  Kd7 {[%clk 0:00:03]} 62. Bc4 {[%clk 0:00:02]}  Kd6 {[%clk 0:00:03]} 63. Kg5 {[%clk 0:00:02]}  Nd7 {[%clk 0:00:04]} 64. f7 {[%clk 0:00:02]}  Ke7 {[%clk 0:00:04]} 65. Kg6 {[%clk 0:00:02]}  Ne5+ {[%clk 0:00:04]} 66. Kg7 {[%clk 0:00:03]}  Nxf7 {[%clk 0:00:05]} 1/2-1/2

[Event "December 19 Late 2023"]
[Site "https://www.chess.com"]
[Date "2023.12.19"]
[Round "6"]
[White "Ferreira, Vitor Hugo Vieira"]
[Black "Rustemov, Alexander"]
[Result "0-1"]
[Board "46"]
[TimeControl "180+1"]
[WhiteFideId "2119765"]
[BlackFideId "4119002"]
[WhiteElo "2123"]
[BlackElo "2789"]
[WhiteTeam "BRA"]
[BlackTeam "RUS"]
[WhiteClock "0:00:00"]
[BlackClock "0:00:06"]

1. c4 {[%clk 0:03:00]}  c5 {[%clk 0:02:57]} 2. g3 {[%clk 0:03:00]}  g6 {[%clk 0:02:57]} 3. Bg2 {[%clk 0:03:01]}  Bg7 {[%clk 0:02:57]} 4. Nc3 {[%clk 0:03:01]}  Nc6 {[%clk 0:02:58]} 5. Nf3 {[%clk 0:03:01]}  b6 {[%clk 0:02:57]} 6. O-O {[%clk 0:03:00]}  Bb7 {[%clk 0:02:57]} 7. e3 {[%clk 0:03:00]}  Bxc3 {[%clk 0:02:56]} 8. bxc3 {[%clk 0:02:53]}  d6 {[%clk 0:02:56]} 9. d4 {[%clk 0:02:53]}  Na5 {[%clk 0:02:52]} 10. Re1 {[%clk 0:02:45]}  Nf6 {[%clk 0:02:50]} 11. d5 {[%clk 0:02:36]}  Nd7 {[%clk 0:02:32]} 12. e4 {[%clk 0:02:34]}  Qc7 {[%clk 0:02:28]} 13. Bf4 {[%clk 0:02:30]}  Nxc4 {[%clk 0:02:27]} 14. Qe2 {[%clk 0:02:21]}  Nce5 {[%clk 0:02:26]} 15. c4 {[%clk 0:02:18]}  Ba6 {[%clk 0:02:21]} 16. Nd2 {[%clk 0:02:18]}  h6 {[%clk 0:02:08]} 17. Be3 {[%clk 0:02:17]}  Nf6 {[%clk 0:01:58]} 18. h3 {[%clk 0:02:11]}  Ned7 {[%clk 0:01:57]} 19. f4 {[%clk 0:02:10]}  Kf8 {[%clk 0:01:50]} 20. Bf2 {[%clk 0:02:01]}  Ng8 {[%clk 0:01:27]} 21. e5 {[%clk 0:02:00]}  Kg7 {[%clk 0:01:26]} 22. e6 {[%clk 0:01:55]}  Ndf6 {[%clk 0:01:21]} 23. exf7 {[%clk 0:01:52]}  Kxf7 {[%clk 0:01:21]} 24. g4 {[%clk 0:01:38]}  Re8 {[%clk 0:01:21]} 25. g5 {[%clk 0:01:29]}  Nh5 {[%clk 0:01:18]} 26. f5 {[%clk 0:01:27]}  hxg5 {[%clk 0:01:12]} 27. fxg6+ {[%clk 0:01:25]}  Kxg6 {[%clk 0:01:03]} 28. Qe6+ {[%clk 0:01:24]}  Ngf6 {[%clk 0:01:01]} 29. Be4+ {[%clk 0:01:02]}  Kg7 {[%clk 0:00:59]} 30. Qf5 {[%clk 0:00:56]}  Reg8 {[%clk 0:00:36]} 31. Bg2 {[%clk 0:00:36]}  Bc8 {[%clk 0:00:35]} 32. Qd3 {[%clk 0:00:32]}  Nf4 {[%clk 0:00:35]} 33. Qg3 {[%clk 0:00:30]}  Nxg2 {[%clk 0:00:33]} 34. Qxg2 {[%clk 0:00:26]}  Bxh3 {[%clk 0:00:33]} 35. Qf3 {[%clk 0:00:24]}  Qd7 {[%clk 0:00:31]} 36. Bg3 {[%clk 0:00:20]}  Re8 {[%clk 0:00:28]} 37. Re3 {[%clk 0:00:19]}  Qf5 {[%clk 0:00:28]} 38. Qe2 {[%clk 0:00:18]}  Kg6 {[%clk 0:00:26]} 39. Rxe7 {[%clk 0:00:13]}  Bg4 {[%clk 0:00:27]} 40. Qe3 {[%clk 0:00:12]}  Rxe7 {[%clk 0:00:24]} 41. Qxe7 {[%clk 0:00:12]}  Bf3 {[%clk 0:00:23]} 42. Rf1 {[%clk 0:00:08]}  Rh1+ {[%clk 0:00:18]} 43. Kf2 {[%clk 0:00:09]}  Bxd5+ {[%clk 0:00:12]} 44. Ke2 {[%clk 0:00:07]}  Rxf1 {[%clk 0:00:12]} 45. Nxf1 {[%clk 0:00:08]}  Bxc4+ {[%clk 0:00:12]} 46. Kd2 {[%clk 0:00:07]}  Qxf1 {[%clk 0:00:11]} 47. Bxd6 {[%clk 0:00:06]}  Qd3+ {[%clk 0:00:09]} 48. Ke1 {[%clk 0:00:06]}  Qf1+ {[%clk 0:00:06]} 49. Kd2 {[%clk 0:00:06]}  Qd3+ {[%clk 0:00:06]} 50. Ke1 {[%clk 0:00:07]}  Qc3+ {[%clk 0:00:07]} 51. Kf2 {[%clk 0:00:06]}  Ne4+ {[%clk 0:00:07]} 52. Qxe4+ {[%clk 0:00:06]}  Kf6 {[%clk 0:00:07]} 53. Qe7+ {[%clk 0:00:04]}  Kf5 {[%clk 0:00:07]} 54. Qf8+ {[%clk 0:00:04]}  Qf6 {[%clk 0:00:06]} 55. Qc8+ {[%clk 0:00:03]}  Ke4+ {[%clk 0:00:06]} 56. Kg3 {[%clk 0:00:03]}  Qf3+ {[%clk 0:00:06]} 57. Kh2 {[%clk 0:00:03]}  Qf2+ {[%clk 0:00:06]} 58. Kh1 {[%clk 0:00:03]}  Bd5 {[%clk 0:00:06]} 59. Qg4+ {[%clk 0:00:00]}  Kd3+ {[%clk 0:00:06]} 0-1

[Event "December 19 Late 2023"]
[Site "https://www.chess.com"]
[Date "2023.12.19"]
[Round "6"]
[White "Zeynalli, Rashad"]
[Black "Khater, Sherif"]
[Result "0-1"]
[Board "49"]
[TimeControl "180+1"]
[WhiteFideId "13403320"]
[BlackFideId "2034280"]
[WhiteElo "2088"]
[BlackElo "2547"]
[WhiteTeam "AZE"]
[BlackTeam "USA"]
[WhiteClock "0:00:00"]
[BlackClock "0:00:19"]

1. d4 {[%clk 0:02:52]}  a6 {[%clk 0:03:00]} 2. e4 {[%clk 0:02:51]}  c6 {[%clk 0:03:00]} 3. Nf3 {[%clk 0:02:51]}  d5 {[%clk 0:03:01]} 4. Nc3 {[%clk 0:02:48]}  dxe4 {[%clk 0:03:01]} 5. Nxe4 {[%clk 0:02:49]}  Nf6 {[%clk 0:03:01]} 6. Nxf6+ {[%clk 0:02:45]}  exf6 {[%clk 0:03:01]} 7. Bd3 {[%clk 0:02:44]}  Bd6 {[%clk 0:03:00]} 8. c3 {[%clk 0:02:43]}  O-O {[%clk 0:03:00]} 9. Qc2 {[%clk 0:02:44]}  h6 {[%clk 0:03:00]} 10. O-O {[%clk 0:02:37]}  Re8 {[%clk 0:03:00]} 11. Bd2 {[%clk 0:02:33]}  Nd7 {[%clk 0:03:00]} 12. Rfe1 {[%clk 0:02:33]}  Nf8 {[%clk 0:03:00]} 13. Rxe8 {[%clk 0:02:25]}  Qxe8 {[%clk 0:03:01]} 14. Re1 {[%clk 0:02:26]}  Qd8 {[%clk 0:03:01]} 15. Qb3 {[%clk 0:02:21]}  b5 {[%clk 0:02:56]} 16. Be4 {[%clk 0:02:10]}  Be6 {[%clk 0:02:53]} 17. Qc2 {[%clk 0:02:10]}  Qd7 {[%clk 0:02:51]} 18. b3 {[%clk 0:02:09]}  Re8 {[%clk 0:02:40]} 19. c4 {[%clk 0:02:08]}  bxc4 {[%clk 0:02:38]} 20. bxc4 {[%clk 0:02:09]}  Bg4 {[%clk 0:02:31]} 21. h3 {[%clk 0:02:06]}  Bh5 {[%clk 0:02:27]} 22. Qa4 {[%clk 0:01:57]}  Rc8 {[%clk 0:02:02]} 23. Qxa6 {[%clk 0:01:52]}  f5 {[%clk 0:02:02]} 24. Bd3 {[%clk 0:01:43]}  Bxf3 {[%clk 0:02:03]} 25. gxf3 {[%clk 0:01:43]}  Ng6 {[%clk 0:01:57]} 26. c5 {[%clk 0:01:00]}  Bf4 {[%clk 0:01:57]} 27. Bxf4 {[%clk 0:00:56]}  Nxf4 {[%clk 0:01:58]} 28. Bf1 {[%clk 0:00:57]}  Rd8 {[%clk 0:01:31]} 29. Qc4 {[%clk 0:00:45]}  Ne6 {[%clk 0:01:23]} 30. a4 {[%clk 0:00:28]}  Nxd4 {[%clk 0:01:23]} 31. Kg2 {[%clk 0:00:28]}  Qc7 {[%clk 0:01:13]} 32. Rd1 {[%clk 0:00:23]}  Qf4 {[%clk 0:01:12]} 33. Qd3 {[%clk 0:00:18]}  Ne6 {[%clk 0:01:10]} 34. Qc2 {[%clk 0:00:15]}  Qg5+ {[%clk 0:01:01]} 35. Kh1 {[%clk 0:00:15]}  Ra8 {[%clk 0:00:51]} 36. Ra1 {[%clk 0:00:12]}  Qf4 {[%clk 0:00:49]} 37. Kg2 {[%clk 0:00:10]}  Qd4 {[%clk 0:00:48]} 38. Rd1 {[%clk 0:00:08]}  Nf4+ {[%clk 0:00:48]} 39. Kg3 {[%clk 0:00:07]}  Qe5 {[%clk 0:00:43]} 40. Qb3 {[%clk 0:00:03]}  Re8 {[%clk 0:00:36]} 41. Kh2 {[%clk 0:00:03]}  Re6 {[%clk 0:00:34]} 42. Rd8+ {[%clk 0:00:01]}  Kh7 {[%clk 0:00:34]} 43. Qb8 {[%clk 0:00:02]}  Qe1 {[%clk 0:00:23]} 44. Rh8+ {[%clk 0:00:03]}  Kg6 {[%clk 0:00:23]} 45. Qxf4 {[%clk 0:00:01]}  Qxf1 {[%clk 0:00:22]} 46. Qg3+ {[%clk 0:00:01]}  Kf6 {[%clk 0:00:22]} 47. Qh4+ {[%clk 0:00:01]}  Kg6 {[%clk 0:00:18]} 48. Qg3+ {[%clk 0:00:00]}  Kf6 {[%clk 0:00:19]} 0-1

[Event "December 19 Late 2023"]
[Site "https://www.chess.com"]
[Date "2023.12.19"]
[Round "6"]
[White "Gunduz, Umut Erdem"]
[Black "Rogov, Matfey"]
[Result "0-1"]
[Board "50"]
[TimeControl "180+1"]
[WhiteFideId "6381383"]
[BlackFideId "44191308"]
[WhiteElo "2182"]
[BlackElo "2057"]
[WhiteTeam "TUR"]
[BlackTeam "RUS"]
[WhiteClock "0:00:49"]
[BlackClock "0:00:25"]

1. e4 {[%clk 0:03:00]}  e5 {[%clk 0:02:59]} 2. Nf3 {[%clk 0:02:59]}  Nc6 {[%clk 0:03:00]} 3. Bc4 {[%clk 0:02:59]}  Nf6 {[%clk 0:03:00]} 4. d3 {[%clk 0:02:59]}  Bc5 {[%clk 0:02:59]} 5. c3 {[%clk 0:02:59]}  d6 {[%clk 0:02:59]} 6. h3 {[%clk 0:02:59]}  a5 {[%clk 0:02:59]} 7. a4 {[%clk 0:02:58]}  h6 {[%clk 0:02:59]} 8. Nbd2 {[%clk 0:02:58]}  O-O {[%clk 0:02:58]} 9. g4 {[%clk 0:02:54]}  d5 {[%clk 0:02:53]} 10. Bb3 {[%clk 0:02:53]}  dxe4 {[%clk 0:02:50]} 11. dxe4 {[%clk 0:02:54]}  Be6 {[%clk 0:02:43]} 12. Qe2 {[%clk 0:02:49]}  Nd7 {[%clk 0:02:21]} 13. g5 {[%clk 0:02:40]}  Bxb3 {[%clk 0:02:03]} 14. Nxb3 {[%clk 0:02:39]}  h5 {[%clk 0:02:03]} 15. Nh4 {[%clk 0:02:18]}  g6 {[%clk 0:01:34]} 16. Qc4 {[%clk 0:02:13]}  Ba7 {[%clk 0:00:56]} 17. Nxg6 {[%clk 0:02:10]}  Nb6 {[%clk 0:00:55]} 18. Qb5 {[%clk 0:01:37]}  fxg6 {[%clk 0:00:54]} 19. Be3 {[%clk 0:01:38]}  Qd7 {[%clk 0:00:49]} 20. Nc5 {[%clk 0:01:32]}  Qf7 {[%clk 0:00:46]} 21. Nxb7 {[%clk 0:01:32]}  Qc4 {[%clk 0:00:34]} 22. Bxb6 {[%clk 0:01:26]}  Qxe4+ {[%clk 0:00:33]} 23. Kd2 {[%clk 0:00:56]}  Bxb6 {[%clk 0:00:33]} 24. Rhe1 {[%clk 0:00:56]}  Rad8+ {[%clk 0:00:32]} 25. Nxd8 {[%clk 0:00:56]}  Rxd8+ {[%clk 0:00:32]} 26. Kc1 {[%clk 0:00:52]}  Qxe1+ {[%clk 0:00:32]} 27. Kc2 {[%clk 0:00:49]}  Qxa1 {[%clk 0:00:25]} 0-1

[Event "December 19 Late 2023"]
[Site "https://www.chess.com"]
[Date "2023.12.19"]
[Round "6"]
[White "Martinez Ramirez, Lennis"]
[Black "Vafin, Ayrat"]
[Result "1-0"]
[Board "51"]
[TimeControl "180+1"]
[WhiteFideId "3509079"]
[BlackFideId "4146530"]
[WhiteElo "2405"]
[BlackElo "2317"]
[WhiteTeam "CUB"]
[BlackTeam "RUS"]
[WhiteClock "0:02:20"]
[BlackClock "0:00:07"]

1. d4 {[%clk 0:03:00]}  d5 {[%clk 0:02:58]} 2. Nf3 {[%clk 0:03:01]}  Nf6 {[%clk 0:02:58]} 3. g3 {[%clk 0:03:02]}  b5 {[%clk 0:02:54]} 4. Bg2 {[%clk 0:03:02]}  Bb7 {[%clk 0:02:54]} 5. O-O {[%clk 0:03:03]}  Nbd7 {[%clk 0:02:55]} 6. a4 {[%clk 0:03:03]}  b4 {[%clk 0:02:54]} 7. Ne5 {[%clk 0:03:03]}  e6 {[%clk 0:02:52]} 8. c4 {[%clk 0:03:03]}  bxc3 {[%clk 0:02:52]} 9. bxc3 {[%clk 0:03:03]}  Nxe5 {[%clk 0:02:52]} 10. dxe5 {[%clk 0:03:03]}  Nd7 {[%clk 0:02:53]} 11. f4 {[%clk 0:03:00]}  Bc5+ {[%clk 0:02:51]} 12. Kh1 {[%clk 0:03:01]}  O-O {[%clk 0:02:51]} 13. a5 {[%clk 0:03:01]}  Ba6 {[%clk 0:02:41]} 14. Nd2 {[%clk 0:02:57]}  f6 {[%clk 0:02:39]} 15. Nb3 {[%clk 0:02:55]}  fxe5 {[%clk 0:01:54]} 16. Nxc5 {[%clk 0:02:55]}  Nxc5 {[%clk 0:01:54]} 17. Ba3 {[%clk 0:02:55]}  Qe7 {[%clk 0:01:41]} 18. fxe5 {[%clk 0:02:55]}  Rxf1+ {[%clk 0:01:27]} 19. Qxf1 {[%clk 0:02:56]}  Qg5 {[%clk 0:01:25]} 20. Bxc5 {[%clk 0:02:55]}  Qxe5 {[%clk 0:01:25]} 21. Bd4 {[%clk 0:02:48]}  Qxe2 {[%clk 0:01:23]} 22. Qxe2 {[%clk 0:02:44]}  Bxe2 {[%clk 0:01:24]} 23. Re1 {[%clk 0:02:44]}  Bg4 {[%clk 0:01:20]} 24. h3 {[%clk 0:02:44]}  Bf5 {[%clk 0:01:06]} 25. g4 {[%clk 0:02:45]}  Be4 {[%clk 0:01:05]} 26. Bxe4 {[%clk 0:02:44]}  dxe4 {[%clk 0:01:06]} 27. Rxe4 {[%clk 0:02:44]}  Kf7 {[%clk 0:01:07]} 28. a6 {[%clk 0:02:44]}  Rb8 {[%clk 0:01:01]} 29. Rf4+ {[%clk 0:02:32]}  Kg6 {[%clk 0:00:57]} 30. Bxa7 {[%clk 0:02:31]}  Ra8 {[%clk 0:00:54]} 31. Bf2 {[%clk 0:02:26]}  Rxa6 {[%clk 0:00:53]} 32. Rc4 {[%clk 0:02:26]}  c6 {[%clk 0:00:35]} 33. Rc5 {[%clk 0:02:26]}  Kf7 {[%clk 0:00:32]} 34. Bd4 {[%clk 0:02:26]}  g6 {[%clk 0:00:32]} 35. Kg2 {[%clk 0:02:26]}  h5 {[%clk 0:00:32]} 36. gxh5 {[%clk 0:02:26]}  gxh5 {[%clk 0:00:33]} 37. Rxh5 {[%clk 0:02:25]}  Ra1 {[%clk 0:00:31]} 38. Rc5 {[%clk 0:02:24]}  Ra6 {[%clk 0:00:28]} 39. h4 {[%clk 0:02:24]}  Kg6 {[%clk 0:00:29]} 40. h5+ {[%clk 0:02:24]}  Kh6 {[%clk 0:00:29]} 41. Be3+ {[%clk 0:02:24]}  Kh7 {[%clk 0:00:30]} 42. Kf3 {[%clk 0:02:24]}  Kg7 {[%clk 0:00:24]} 43. Kg4 {[%clk 0:02:22]}  Kh7 {[%clk 0:00:25]} 44. Kg5 {[%clk 0:02:22]}  Rb6 {[%clk 0:00:19]} 45. Bd4 {[%clk 0:02:21]}  Rb1 {[%clk 0:00:09]} 46. Rxc6 {[%clk 0:02:20]}  Rg1+ {[%clk 0:00:07]} 47. Bxg1 {[%clk 0:02:20]} 1-0

[Event "December 19 Late 2023"]
[Site "https://www.chess.com"]
[Date "2023.12.19"]
[Round "6"]
[White "GoldenShare"]
[Black "Solon, Nathan"]
[Result "0-1"]
[Board "55"]
[TimeControl "180+1"]
[BlackFideId "2017229"]
[WhiteElo "2520"]
[BlackElo "2663"]
[BlackTeam "USA"]
[WhiteClock "0:00:17"]
[BlackClock "0:00:50"]

1. e4 {[%clk 0:02:55]}  c5 {[%clk 0:02:59]} 2. Nc3 {[%clk 0:02:54]}  Nc6 {[%clk 0:02:58]} 3. Bb5 {[%clk 0:02:55]}  Nd4 {[%clk 0:02:58]} 4. Nf3 {[%clk 0:02:55]}  a6 {[%clk 0:02:55]} 5. Bd3 {[%clk 0:02:55]}  Nc6 {[%clk 0:02:55]} 6. O-O {[%clk 0:02:54]}  e6 {[%clk 0:02:52]} 7. Be2 {[%clk 0:02:54]}  Nf6 {[%clk 0:02:49]} 8. d4 {[%clk 0:02:53]}  cxd4 {[%clk 0:02:49]} 9. Nxd4 {[%clk 0:02:54]}  Qc7 {[%clk 0:02:46]} 10. Be3 {[%clk 0:02:54]}  Be7 {[%clk 0:02:43]} 11. f4 {[%clk 0:02:53]}  d6 {[%clk 0:02:43]} 12. Bf3 {[%clk 0:02:49]}  O-O {[%clk 0:02:43]} 13. Qe1 {[%clk 0:02:46]}  Bd7 {[%clk 0:02:40]} 14. Nb3 {[%clk 0:02:46]}  Rac8 {[%clk 0:02:33]} 15. Qf2 {[%clk 0:02:44]}  Na5 {[%clk 0:02:26]} 16. Rae1 {[%clk 0:02:41]}  Nc4 {[%clk 0:02:25]} 17. Bc1 {[%clk 0:02:42]}  Bc6 {[%clk 0:02:17]} 18. g4 {[%clk 0:02:35]}  Nd7 {[%clk 0:02:16]} 19. g5 {[%clk 0:02:32]}  b5 {[%clk 0:02:15]} 20. a3 {[%clk 0:02:31]}  a5 {[%clk 0:02:11]} 21. Kh1 {[%clk 0:02:20]}  b4 {[%clk 0:02:11]} 22. axb4 {[%clk 0:02:20]}  axb4 {[%clk 0:02:11]} 23. Ne2 {[%clk 0:02:19]}  Na5 {[%clk 0:01:48]} 24. Nxa5 {[%clk 0:02:07]}  Qxa5 {[%clk 0:01:48]} 25. Nd4 {[%clk 0:02:07]}  Bb7 {[%clk 0:01:45]} 26. b3 {[%clk 0:01:53]}  Rfe8 {[%clk 0:01:39]} 27. Bb2 {[%clk 0:01:52]}  Bf8 {[%clk 0:01:39]} 28. Ra1 {[%clk 0:01:45]}  Qb6 {[%clk 0:01:39]} 29. Qe2 {[%clk 0:01:28]}  Ra8 {[%clk 0:01:28]} 30. Rxa8 {[%clk 0:01:26]}  Rxa8 {[%clk 0:01:29]} 31. Ra1 {[%clk 0:01:22]}  Rxa1+ {[%clk 0:01:27]} 32. Bxa1 {[%clk 0:01:23]}  Nc5 {[%clk 0:01:21]} 33. Kg2 {[%clk 0:01:14]}  Qa5 {[%clk 0:01:21]} 34. Bb2 {[%clk 0:01:12]}  Qa2 {[%clk 0:01:21]} 35. Bc1 {[%clk 0:01:13]}  g6 {[%clk 0:01:19]} 36. f5 {[%clk 0:01:07]}  e5 {[%clk 0:01:13]} 37. Nb5 {[%clk 0:00:57]}  Ba6 {[%clk 0:01:13]} 38. c4 {[%clk 0:00:22]}  Qxb3 {[%clk 0:01:12]} 39. Be3 {[%clk 0:00:19]}  Nd3 {[%clk 0:01:03]} 40. Nc7 {[%clk 0:00:18]}  Bxc4 {[%clk 0:01:02]} 41. fxg6 {[%clk 0:00:18]}  Nf4+ {[%clk 0:01:00]} 42. Bxf4 {[%clk 0:00:19]}  Bxe2 {[%clk 0:01:00]} 43. gxh7+ {[%clk 0:00:17]}  Kxh7 {[%clk 0:00:59]} 44. Bxe2 {[%clk 0:00:17]}  exf4 {[%clk 0:00:59]} 45. Nd5 {[%clk 0:00:18]}  Qc2 {[%clk 0:00:54]} 46. Nxf4 {[%clk 0:00:17]}  b3 {[%clk 0:00:52]} 47. Kg3 {[%clk 0:00:18]}  b2 {[%clk 0:00:50]} 48. e5 {[%clk 0:00:17]} 0-1